[Event "20 ans"]
[Date "2016.10.28"]
[Round "QF2"]
[White "Moiseenko, Alexander"]
[Black "Radjabov, Teimour"]
[Result "1/2-1/2"]
[WhiteElo "2651"]
[BlackElo "2788"]
[ECO "D37"]
[WhiteFed "UKR"]
[BlackFed "AZE"]
[FCGameId "-1692222762"]
[TimeControl "900+3"]

1. d4 {[%clk 0:15:05]} Nf6 {[%clk 0:15:05]} 2. c4 {[%clk 0:15:07]} e6  {[%clk 0:15:02]} 3. Nf3 {[%clk 0:15:08]} d5 {[%clk 0:15:02]} 4. Nc3  {[%clk 0:15:08]} Be7 {[%clk 0:15:03]} 5. Bf4 {[%clk 0:15:02]} O-O  {[%clk 0:15:03]} 6. e3 {[%clk 0:15:03]} Nbd7 {[%clk 0:15:05]} 7. c5  {[%clk 0:14:34]} Nh5 {[%clk 0:15:06]} 8. Bd3 {[%clk 0:14:21]} Nxf4  {[%clk 0:15:05]} 9. exf4 {[%clk 0:14:22]} c6 {[%clk 0:14:56]} 10. O-O  {[%clk 0:14:09]} b6 {[%clk 0:14:58]} 11. b4 {[%clk 0:14:08]} a5 {[%clk 0:14:48]}  12. a3 {[%clk 0:14:06]} Qc7 {[%clk 0:14:48]} 13. g3 {[%clk 0:13:52]} Ba6  {[%clk 0:14:37]} 14. Re1 {[%clk 0:13:27]} Bxd3 {[%clk 0:13:27]} 15. Qxd3  {[%clk 0:13:27]} Bf6 {[%clk 0:13:27]} 16. Nd2 {[%clk 0:11:35]} Rfb8  {[%clk 0:11:11]} 17. Reb1 {[%clk 0:10:02]} g6 {[%clk 0:09:56]} 18. Kg2  {[%clk 0:09:36]} Ra7 {[%clk 0:09:36]} 19. h4 {[%clk 0:08:44]} Rba8  {[%clk 0:08:54]} 20. Nb3 {[%clk 0:07:51]} axb4 {[%clk 0:07:43]} 21. axb4  {[%clk 0:07:53]} Rxa1 {[%clk 0:07:42]} 22. Nxa1 {[%clk 0:07:52]} bxc5  {[%clk 0:05:24]} 23. bxc5 {[%clk 0:07:52]} Nxc5 {[%clk 0:04:38]} 24. dxc5  {[%clk 0:07:37]} Qa5 {[%clk 0:04:40]} 25. Nxd5 {[%clk 0:03:55]} exd5  {[%clk 0:04:35]} 26. Nb3 {[%clk 0:03:51]} Qb4 {[%clk 0:04:35]} 27. h5  {[%clk 0:03:09]} Kg7 {[%clk 0:04:32]} 28. Qe3 {[%clk 0:02:02]} gxh5  {[%clk 0:02:58]} 29. Nd2 {[%clk 0:01:36]} Qc3 {[%clk 0:01:25]} 30. Qe2  {[%clk 0:00:58]} Qc2 {[%clk 0:00:19]} 31. Rb7 {[%clk 0:00:56]} Rf8  {[%clk 0:00:11]} 32. Qe3 {[%clk 0:00:26]} d4 {[%clk 0:00:05]} 33. Qe1  {[%clk 0:00:28]} Qxc5 {[%clk 0:00:06]} 34. Qe6 {[%clk 0:00:13]} Qd5+  {[%clk 0:00:05]} 35. Qxd5 {[%clk 0:00:14]} cxd5 {[%clk 0:00:08]} 36. Rb5  {[%clk 0:00:12]} Rd8 {[%clk 0:00:10]} 37. Nb3 {[%clk 0:00:08]} d3  {[%clk 0:00:11]} 38. Kf3 {[%clk 0:00:08]} h4 {[%clk 0:00:06]} 39. gxh4  {[%clk 0:00:07]} Bxh4 {[%clk 0:00:09]} 40. Ke3 {[%clk 0:00:05]} Re8+  {[%clk 0:00:10]} 41. Kxd3 {[%clk 0:00:06]} Bxf2 {[%clk 0:00:12]} 42. Rxd5  {[%clk 0:00:07]} Re3+ {[%clk 0:00:07]} 43. Kc2 {[%clk 0:00:08]} Rf3  {[%clk 0:00:05]} 44. Rg5+ {[%clk 0:00:06]} Kf6 {[%clk 0:00:07]} 45. Rh5  {[%clk 0:00:08]} Kg6 {[%clk 0:00:06]} 46. Rg5+ {[%clk 0:00:10]} Kh6  {[%clk 0:00:08]} 47. Rf5 {[%clk 0:00:12]} Kg7 {[%clk 0:00:08]} 48. Rg5+  {[%clk 0:00:14]} Kf6 {[%clk 0:00:05]} 49. Rh5 {[%clk 0:00:16]} Rxf4  {[%clk 0:00:07]} 50. Rxh7 {[%clk 0:00:16]} Kg6 {[%clk 0:00:06]} 51. Rh8  {[%clk 0:00:15]} Be3 {[%clk 0:00:05]} 52. Kd3 {[%clk 0:00:15]} Bb6  {[%clk 0:00:07]} 53. Nd2 {[%clk 0:00:13]} Rd4+ {[%clk 0:00:09]} 54. Ke2  {[%clk 0:00:15]} Ra4 {[%clk 0:00:07]} 55. Rc8 {[%clk 0:00:14]} f6  {[%clk 0:00:07]} 56. Rc6 {[%clk 0:00:13]} Ba7 {[%clk 0:00:08]} 57. Rc2  {[%clk 0:00:06]} Kf5 {[%clk 0:00:09]} 58. Nf3 {[%clk 0:00:05]} Kf4  {[%clk 0:00:11]} 59. Ne1 {[%clk 0:00:07]} Re4+ {[%clk 0:00:09]} 60. Kf1  {[%clk 0:00:09]} f5 {[%clk 0:00:10]} 61. Nd3+ {[%clk 0:00:09]} Ke3  {[%clk 0:00:08]} 62. Ne1 {[%clk 0:00:07]} Kf4 {[%clk 0:00:07]} 63. Rc7  {[%clk 0:00:06]} Bb6 {[%clk 0:00:08]} 64. Ng2+ {[%clk 0:00:07]} Kf3  {[%clk 0:00:05]} 65. Rc3+ {[%clk 0:00:09]} Kg4 {[%clk 0:00:08]} 66. Rb3  {[%clk 0:00:06]} Bc5 {[%clk 0:00:08]} 67. Rc3 {[%clk 0:00:07]} Bd4  {[%clk 0:00:09]} 68. Rd3 {[%clk 0:00:09]} Bc5 {[%clk 0:00:10]} 69. Rc3  {[%clk 0:00:11]} Bd4 {[%clk 0:00:09]} 70. Rd3 {[%clk 0:00:14]} f4  {[%clk 0:00:07]} 71. Ne1 {[%clk 0:00:14]} Bc5 {[%clk 0:00:07]} 72. Rd8  {[%clk 0:00:12]} f3 {[%clk 0:00:05]} 73. Rg8+ {[%clk 0:00:13]} Kf4  {[%clk 0:00:05]} 74. Nd3+ {[%clk 0:00:15]} Ke3 {[%clk 0:00:07]} 75. Nxc5  {[%clk 0:00:17]} Rc4 {[%clk 0:00:09]} 76. Re8+ {[%clk 0:00:19]} Kf4  {[%clk 0:00:09]} 77. Nd3+ {[%clk 0:00:21]} Kg3 {[%clk 0:00:09]} 78. Rg8+  {[%clk 0:00:22]} Rg4 {[%clk 0:00:11]} 79. Rf8 {[%clk 0:00:21]} Ra4  {[%clk 0:00:13]} 80. Ne1 {[%clk 0:00:21]} Ra3 {[%clk 0:00:10]} 81. Rf7  {[%clk 0:00:20]} Rc3 {[%clk 0:00:10]} 82. Rf6 {[%clk 0:00:21]} Ra3  {[%clk 0:00:12]} 83. Rg6+ {[%clk 0:00:22]} Kf4 {[%clk 0:00:14]} 84. Rg8  {[%clk 0:00:22]} Rc3 {[%clk 0:00:15]} 85. Kf2 {[%clk 0:00:23]} Ra3  {[%clk 0:00:15]} 86. Rf8+ {[%clk 0:00:24]} Ke5 {[%clk 0:00:13]} 87. Nxf3+  {[%clk 0:00:26]} Ke6 {[%clk 0:00:15]} 88. Kg3 {[%clk 0:00:25]} Kd5  {[%clk 0:00:16]} 89. Rf5+ {[%clk 0:00:26]} Ke6 {[%clk 0:00:18]} 90. Re5+  {[%clk 0:00:27]} Kd6 {[%clk 0:00:20]} 91. Rh5 {[%clk 0:00:28]} Ke6  {[%clk 0:00:22]} 92. Kf4 {[%clk 0:00:29]} Ra4+ {[%clk 0:00:24]} 93. Ke3  {[%clk 0:00:31]} Kf6 {[%clk 0:00:25]} 94. Nd4 {[%clk 0:00:32]} Kg6  {[%clk 0:00:27]} 95. Re5 {[%clk 0:00:34]} Ra1 {[%clk 0:00:28]} 96. Kf4  {[%clk 0:00:35]} Rf1+ {[%clk 0:00:29]} 97. Nf3 {[%clk 0:00:37]} Kf6  {[%clk 0:00:31]} 98. Re2 {[%clk 0:00:37]} Ra1 {[%clk 0:00:33]} 99. Re4  {[%clk 0:00:33]} Rf1 {[%clk 0:00:34]} 100. Ra4 {[%clk 0:00:34]} Ke6  {[%clk 0:00:36]} 101. Ke4 {[%clk 0:00:36]} Kd6 {[%clk 0:00:36]} 102. Ra6+  {[%clk 0:00:37]} Kc5 {[%clk 0:00:38]} 103. Ra8 {[%clk 0:00:33]} Kd6  {[%clk 0:00:38]} 104. Rd8+ {[%clk 0:00:29]} Ke7 {[%clk 0:00:40]} 105. Rd5  {[%clk 0:00:30]} Ra1 {[%clk 0:00:39]} 106. Kf5 {[%clk 0:00:29]} Rf1  {[%clk 0:00:40]} 107. Rd3 {[%clk 0:00:31]} Rf2 {[%clk 0:00:41]} 108. Ke4  {[%clk 0:00:16]} Re2+ {[%clk 0:00:42]} 109. Kf4 {[%clk 0:00:17]} Rf2  {[%clk 0:00:40]} 110. Ra3 {[%clk 0:00:16]} Kf6 {[%clk 0:00:40]} 111. Ra6+  {[%clk 0:00:17]} Ke7 {[%clk 0:00:42]} 112. Ke4 {[%clk 0:00:19]} Re2+  {[%clk 0:00:41]} 113. Kd5 {[%clk 0:00:21]} Rf2 {[%clk 0:00:32]} 114. Nd4  {[%clk 0:00:22]} Rd2 {[%clk 0:00:32]} 115. Ke5 {[%clk 0:00:24]} Kf7  {[%clk 0:00:32]} 116. Rf6+ {[%clk 0:00:26]} Ke7 {[%clk 0:00:27]} 117. Rd6  {[%clk 0:00:24]} Rf2 {[%clk 0:00:23]} 118. Rd5 {[%clk 0:00:23]} Kf7  {[%clk 0:00:21]} 119. Rd6 {[%clk 0:00:21]} Ke7 {[%clk 0:00:23]} 120. Ra6  {[%clk 0:00:19]} Kf7 {[%clk 0:00:24]} 121. Ne6 {[%clk 0:00:16]} Re2+  {[%clk 0:00:24]} 122. Kf5 {[%clk 0:00:18]} Rf2+ {[%clk 0:00:26]} 123. Nf4  {[%clk 0:00:20]} Rf1 {[%clk 0:00:25]} 124. Ra7+ {[%clk 0:00:22]} Ke8  {[%clk 0:00:26]} 125. Ke6 {[%clk 0:00:22]} Re1+ {[%clk 0:00:18]} 126. Kd6  {[%clk 0:00:19]} Rd1+ {[%clk 0:00:15]} 127. Nd5 {[%clk 0:00:21]} Kf8  {[%clk 0:00:16]} 128. Rb7 {[%clk 0:00:20]} Kg8 {[%clk 0:00:15]} 129. Ke6  {[%clk 0:00:19]} Re1+ {[%clk 0:00:13]} 130. Kf5 {[%clk 0:00:14]} Rf1+  {[%clk 0:00:13]} 131. Nf4 {[%clk 0:00:12]} Kf8 {[%clk 0:00:14]} 132. Ke5  {[%clk 0:00:13]} Ke8 {[%clk 0:00:11]} 133. Ke6 {[%clk 0:00:14]} Re1+  {[%clk 0:00:12]} 134. Kd6 {[%clk 0:00:15]} Rd1+ {[%clk 0:00:14]} 135. Nd5  {[%clk 0:00:17]} Kf8 {[%clk 0:00:16]} 136. Rd7 {[%clk 0:00:15]} Re1  {[%clk 0:00:10]} 137. Rb7 {[%clk 0:00:16]} Rd1 {[%clk 0:00:11]} 138. Ra7  {[%clk 0:00:11]} Kg8 {[%clk 0:00:11]} 139. Rb7 {[%clk 0:00:07]} Kf8  {[%clk 0:00:13]} 140. Rc7 {[%clk 0:00:09]} Kg8 {[%clk 0:00:15]} 141. Ke5  {[%clk 0:00:11]} Re1+ {[%clk 0:00:16]} 142. Kf5 {[%clk 0:00:13]} Rf1+  {[%clk 0:00:17]} 143. Kg5 {[%clk 0:00:15]} Rg1+ {[%clk 0:00:18]} 144. Kf5  {[%clk 0:00:13]} Rf1+ {[%clk 0:00:20]} 145. Ke6 {[%clk 0:00:15]} Re1+  {[%clk 0:00:21]} 146. Kd6 {[%clk 0:00:17]} Rd1 {[%clk 0:00:23]} 147. Rd7  {[%clk 0:00:12]} Kf8 {[%clk 0:00:13]} 148. Kc7 {[%clk 0:00:12]} Rc1+  {[%clk 0:00:12]} 149. Kd8 {[%clk 0:00:14]} Rd1 {[%clk 0:00:08]} 150. Rd6  {[%clk 0:00:07]} Kf7 {[%clk 0:00:08]} 151. Kd7 {[%clk 0:00:09]} Rd2  {[%clk 0:00:07]} 152. Kc6 {[%clk 0:00:10]} Rc2+ {[%clk 0:00:09]} 153. Kd7  {[%clk 0:00:12]} Rd2 {[%clk 0:00:11]} 154. Rf6+ {[%clk 0:00:12]} Kg7  {[%clk 0:00:13]} 155. Rf5 {[%clk 0:00:13]} Rd1 {[%clk 0:00:11]} 156. Re5  {[%clk 0:00:11]} Kf7 {[%clk 0:00:13]} 157. Kd6 {[%clk 0:00:13]} Rd2  {[%clk 0:00:11]} 158. Rf5+ {[%clk 0:00:15]} Kg6 {[%clk 0:00:12]} 159. Rf1  {[%clk 0:00:15]} Kg7 {[%clk 0:00:12]} 160. Ke6 {[%clk 0:00:14]} Re2+  {[%clk 0:00:14]} 161. Kf5 {[%clk 0:00:16]} Ra2 {[%clk 0:00:10]} 162. Rc1  {[%clk 0:00:15]} Rf2+ {[%clk 0:00:11]} 163. Nf4 {[%clk 0:00:17]} Kf7  {[%clk 0:00:12]} 164. Rc7+ {[%clk 0:00:18]} Kf8 {[%clk 0:00:07]} 165. Ke5  {[%clk 0:00:19]} Ke8 {[%clk 0:00:08]} 166. Ke6 {[%clk 0:00:15]} Kd8  {[%clk 0:00:09]} 167. Rd7+ {[%clk 0:00:16]} Kc8 168. Nd5 {[%clk 0:00:18]} Kb8  {[%clk 0:00:07]} 169. Kd6 {[%clk 0:00:18]} Rd2 {[%clk 0:00:05]} 170. Rh7  {[%clk 0:00:12]} Rd1 {[%clk 0:00:08]} 171. Rg7 {[%clk 0:00:11]} Rd2  {[%clk 0:00:10]} 172. Rg1 {[%clk 0:00:12]} Kb7 {[%clk 0:00:06]} 173. Rb1+  {[%clk 0:00:14]} Kc8 {[%clk 0:00:06]} 174. Rb5 {[%clk 0:00:11]} Rd1  {[%clk 0:00:08]} 175. Rb2 {[%clk 0:00:13]} Rd4 {[%clk 0:00:05]} 176. Kc6  {[%clk 0:00:11]} Rc4+ {[%clk 0:00:07]} 177. Kd6 {[%clk 0:00:13]} Rd4  {[%clk 0:00:10]} 178. Rc2+ {[%clk 0:00:12]} Kb7 {[%clk 0:00:11]} 179. Rc7+  {[%clk 0:00:14]} Kb8 {[%clk 0:00:13]} 180. Rd7 {[%clk 0:00:16]} Rd1  {[%clk 0:00:13]} 181. Kc5 {[%clk 0:00:18]} Rc1+ {[%clk 0:00:12]} 182. Kb5  {[%clk 0:00:19]} Rb1+ {[%clk 0:00:13]} 1/2-1/2

[Event "20 ans"]
[Date "2016.10.28"]
[Round "QFtb1"]
[White "Hou, Yifan"]
[Black "Korobov, Anton"]
[Result "0-1"]
[WhiteElo "2645"]
[BlackElo "2714"]
[ECO "C11"]
[WhiteFed "CHN"]
[BlackFed "UKR"]
[FCGameId "1573835171"]
[TimeControl "900+3"]

1. e4 {[%clk 0:05:04]} e6 {[%clk 0:05:05]} 2. d4 {[%clk 0:05:06]} d5  {[%clk 0:05:07]} 3. Nc3 {[%clk 0:05:08]} Nf6 {[%clk 0:05:08]} 4. e5  {[%clk 0:05:06]} Nfd7 {[%clk 0:05:09]} 5. f4 {[%clk 0:05:08]} c5  {[%clk 0:05:11]} 6. Nf3 {[%clk 0:05:10]} Nc6 {[%clk 0:05:13]} 7. Be3  {[%clk 0:05:12]} Be7 {[%clk 0:05:15]} 8. Qd2 {[%clk 0:05:14]} a6  {[%clk 0:05:16]} 9. g3 {[%clk 0:04:36]} O-O {[%clk 0:04:24]} 10. Bh3  {[%clk 0:04:31]} f5 {[%clk 0:03:24]} 11. exf6 {[%clk 0:03:59]} Nxf6  {[%clk 0:03:26]} 12. dxc5 {[%clk 0:03:37]} Kh8 {[%clk 0:03:27]} 13. O-O-O  {[%clk 0:03:34]} Qa5 {[%clk 0:03:23]} 14. Kb1 {[%clk 0:03:22]} Bxc5  {[%clk 0:02:44]} 15. Bxc5 {[%clk 0:03:20]} Qxc5 {[%clk 0:02:46]} 16. Rhe1  {[%clk 0:03:01]} Re8 {[%clk 0:02:48]} 17. g4 {[%clk 0:02:47]} Rf8  {[%clk 0:01:38]} 18. Ng5 {[%clk 0:01:55]} Qd6 {[%clk 0:01:33]} 19. f5  {[%clk 0:01:00]} exf5 {[%clk 0:01:34]} 20. gxf5 {[%clk 0:01:02]} d4  {[%clk 0:01:21]} 21. Nf3 {[%clk 0:00:50]} Bd7 {[%clk 0:01:12]} 22. Nxd4  {[%clk 0:00:52]} Nxd4 {[%clk 0:01:13]} 23. Qxd4 {[%clk 0:00:54]} Qxh2  {[%clk 0:01:06]} 24. Rh1 {[%clk 0:00:56]} Qc7 {[%clk 0:01:03]} 25. a3  {[%clk 0:00:20]} Rad8 {[%clk 0:01:02]} 26. Qh4 {[%clk 0:00:19]} Bc6  {[%clk 0:01:02]} 27. Rhg1 {[%clk 0:00:21]} Rxd1+ {[%clk 0:00:57]} 28. Rxd1  {[%clk 0:00:24]} Qh2 {[%clk 0:00:53]} 29. Rd3 {[%clk 0:00:25]} Re8  {[%clk 0:00:48]} 30. Qg5 {[%clk 0:00:10]} h6 {[%clk 0:00:43]} 31. Qg6  {[%clk 0:00:09]} Re1+ {[%clk 0:00:40]} 32. Ka2 {[%clk 0:00:10]} Be8  {[%clk 0:00:39]} 33. Qg3 {[%clk 0:00:12]} Bf7+ {[%clk 0:00:40]} 0-1

[Event "20 ans"]
[Date "2016.10.28"]
[Round "QFtb1"]
[White "Moiseenko, Alexander"]
[Black "Radjabov, Teimour"]
[Result "0-1"]
[WhiteElo "2651"]
[BlackElo "2788"]
[ECO "D37"]
[WhiteFed "UKR"]
[BlackFed "AZE"]
[FCGameId "-338913065"]
[TimeControl "900+3"]

1. d4 {[%clk 0:05:05]} Nf6 {[%clk 0:05:05]} 2. c4 {[%clk 0:05:08]} e6  {[%clk 0:05:07]} 3. Nf3 {[%clk 0:05:10]} d5 {[%clk 0:05:09]} 4. Nc3  {[%clk 0:05:12]} Be7 {[%clk 0:05:11]} 5. Bf4 {[%clk 0:05:13]} O-O  {[%clk 0:05:12]} 6. a3 {[%clk 0:05:15]} c6 {[%clk 0:05:04]} 7. e3  {[%clk 0:05:10]} Nbd7 {[%clk 0:05:05]} 8. h3 {[%clk 0:04:54]} b6  {[%clk 0:05:07]} 9. Bd3 {[%clk 0:04:14]} Bb7 {[%clk 0:05:06]} 10. O-O  {[%clk 0:04:10]} c5 {[%clk 0:04:03]} 11. Qe2 {[%clk 0:03:45]} cxd4  {[%clk 0:03:11]} 12. exd4 {[%clk 0:03:46]} Rc8 {[%clk 0:03:13]} 13. Rad1  {[%clk 0:03:11]} dxc4 {[%clk 0:02:47]} 14. Bxc4 {[%clk 0:03:13]} Bxf3  {[%clk 0:02:48]} 15. gxf3 {[%clk 0:03:15]} Nh5 {[%clk 0:02:47]} 16. Bh2  {[%clk 0:03:14]} Bg5 {[%clk 0:02:46]} 17. Ba6 {[%clk 0:02:49]} Bf4  {[%clk 0:02:11]} 18. Bxc8 {[%clk 0:02:30]} Bxh2+ {[%clk 0:02:00]} 19. Kxh2  {[%clk 0:01:13]} Nf4 {[%clk 0:01:59]} 20. Bxd7 {[%clk 0:00:41]} Qh4  {[%clk 0:01:25]} 21. Bxe6 {[%clk 0:00:13]} fxe6 {[%clk 0:01:25]} 0-1

[Event "20 ans"]
[Date "2016.10.28"]
[Round "QFtb2"]
[White "Korobov, Anton"]
[Black "Hou, Yifan"]
[Result "1-0"]
[WhiteElo "2714"]
[BlackElo "2645"]
[ECO "A40"]
[WhiteFed "UKR"]
[BlackFed "CHN"]
[FCGameId "-822827168"]
[TimeControl "900+3"]

1. d4 {[%clk 0:05:05]} e6 {[%clk 0:05:04]} 2. Nf3 {[%clk 0:05:02]} b6  {[%clk 0:05:01]} 3. Bf4 {[%clk 0:04:51]} Bb7 {[%clk 0:05:02]} 4. e3  {[%clk 0:04:46]} f5 {[%clk 0:05:04]} 5. c4 {[%clk 0:04:39]} Nf6 {[%clk 0:05:06]}  6. a3 {[%clk 0:04:39]} d6 {[%clk 0:04:59]} 7. Nc3 {[%clk 0:04:36]} Nbd7  {[%clk 0:05:00]} 8. Be2 {[%clk 0:04:16]} g6 {[%clk 0:04:47]} 9. Ng5  {[%clk 0:04:04]} Qe7 {[%clk 0:04:45]} 10. Bf3 {[%clk 0:03:55]} c6  {[%clk 0:03:09]} 11. Nb5 {[%clk 0:03:41]} cxb5 {[%clk 0:03:11]} 12. Bxb7  {[%clk 0:03:43]} Rb8 {[%clk 0:03:13]} 13. Bc6 {[%clk 0:03:45]} h6  {[%clk 0:03:00]} 14. Nf3 {[%clk 0:03:32]} bxc4 {[%clk 0:03:01]} 15. Qa4  {[%clk 0:03:35]} Bg7 {[%clk 0:03:03]} 16. Qb4 {[%clk 0:03:27]} Ne4  {[%clk 0:02:25]} 17. Rc1 {[%clk 0:02:25]} a5 {[%clk 0:02:03]} 18. Qb5  {[%clk 0:02:13]} Rd8 {[%clk 0:01:44]} 19. Rxc4 {[%clk 0:02:08]} O-O  {[%clk 0:01:43]} 20. O-O {[%clk 0:02:06]} g5 {[%clk 0:01:28]} 21. Bg3  {[%clk 0:02:04]} h5 {[%clk 0:01:00]} 22. Bxe4 {[%clk 0:01:48]} fxe4  {[%clk 0:01:02]} 23. Qxg5 {[%clk 0:01:46]} Rf6 {[%clk 0:00:55]} 24. Nd2  {[%clk 0:01:38]} d5 {[%clk 0:00:57]} 25. Rc7 {[%clk 0:01:29]} Qe8  {[%clk 0:00:51]} 26. Rfc1 {[%clk 0:01:23]} Qf7 {[%clk 0:00:17]} 27. Be5  {[%clk 0:01:12]} Kh7 {[%clk 0:00:11]} 28. Bxf6 {[%clk 0:01:07]} Bxf6  {[%clk 0:00:13]} 29. Qf4 {[%clk 0:01:06]} Qe7 {[%clk 0:00:13]} 30. R1c6  {[%clk 0:00:57]} Bh4 {[%clk 0:00:08]} 31. g3 {[%clk 0:00:49]} Bg5  {[%clk 0:00:09]} 32. Qd6 {[%clk 0:00:48]} Qg7 {[%clk 0:00:08]} 33. Qxe6  {[%clk 0:00:45]} h4 {[%clk 0:00:05]} 34. Qf5+ {[%clk 0:00:43]} Kh8  {[%clk 0:00:05]} 35. Rc8 {[%clk 0:00:37]} hxg3 {[%clk 0:00:06]} 36. hxg3  {[%clk 0:00:38]} Rf8 {[%clk 0:00:05]} 37. Rxf8+ {[%clk 0:00:35]} Nxf8  {[%clk 0:00:07]} 38. Rc8 {[%clk 0:00:34]} Be7 {[%clk 0:00:06]} 39. Qh5+  {[%clk 0:00:35]} 1-0

[Event "20 ans"]
[Date "2016.10.28"]
[Round "QFtb2"]
[White "Radjabov, Teimour"]
[Black "Moiseenko, Alexander"]
[Result "1-0"]
[WhiteElo "2788"]
[BlackElo "2651"]
[ECO "B40"]
[WhiteFed "AZE"]
[BlackFed "UKR"]
[FCGameId "2081975512"]
[TimeControl "900+3"]

1. e4 {[%clk 0:05:05]} c5 {[%clk 0:05:06]} 2. Nf3 {[%clk 0:05:07]} e6  {[%clk 0:05:08]} 3. c3 {[%clk 0:05:08]} Nf6 {[%clk 0:04:52]} 4. e5  {[%clk 0:05:09]} Nd5 {[%clk 0:04:53]} 5. d4 {[%clk 0:05:10]} cxd4  {[%clk 0:04:53]} 6. cxd4 {[%clk 0:05:11]} Nc6 {[%clk 0:04:54]} 7. Bc4  {[%clk 0:05:01]} d6 {[%clk 0:04:46]} 8. O-O {[%clk 0:04:56]} Be7  {[%clk 0:04:48]} 9. exd6 {[%clk 0:04:32]} Qxd6 {[%clk 0:04:34]} 10. Nc3  {[%clk 0:04:34]} O-O {[%clk 0:04:06]} 11. Re1 {[%clk 0:04:22]} Nxc3  {[%clk 0:03:44]} 12. bxc3 {[%clk 0:04:24]} b6 {[%clk 0:03:42]} 13. Bd3  {[%clk 0:04:10]} Bb7 {[%clk 0:03:41]} 14. Qe2 {[%clk 0:03:47]} g6  {[%clk 0:03:23]} 15. Qe3 {[%clk 0:02:55]} Bf6 {[%clk 0:02:57]} 16. Qh6  {[%clk 0:02:10]} Bg7 {[%clk 0:02:58]} 17. Qh4 {[%clk 0:02:12]} Ne7  {[%clk 0:02:41]} 18. Ng5 {[%clk 0:01:13]} h5 {[%clk 0:02:21]} 19. Be4  {[%clk 0:00:49]} Nf5 {[%clk 0:02:17]} 20. Qh3 {[%clk 0:00:51]} Bxe4  {[%clk 0:01:47]} 21. Nxe4 {[%clk 0:00:53]} Qd5 {[%clk 0:01:39]} 22. Bg5  {[%clk 0:00:55]} f6 {[%clk 0:01:40]} 23. Bd2 {[%clk 0:00:54]} Rac8  {[%clk 0:01:40]} 24. a4 {[%clk 0:00:55]} Rc6 {[%clk 0:01:23]} 25. Qd3  {[%clk 0:00:53]} Rfc8 {[%clk 0:01:16]} 26. h3 {[%clk 0:00:45]} Kf7  {[%clk 0:01:13]} 27. Qb5 {[%clk 0:00:43]} Bf8 {[%clk 0:00:48]} 28. Rab1  {[%clk 0:00:41]} Be7 {[%clk 0:00:46]} 29. Qa6 {[%clk 0:00:30]} Qd7  {[%clk 0:00:41]} 30. Qb5 {[%clk 0:00:26]} g5 {[%clk 0:00:33]} 31. Qe2  {[%clk 0:00:28]} Rh8 {[%clk 0:00:28]} 32. Rb5 {[%clk 0:00:29]} Rcc8  {[%clk 0:00:18]} 33. g3 {[%clk 0:00:20]} Qc6 {[%clk 0:00:09]} 34. Qd3  {[%clk 0:00:14]} Qc4 {[%clk 0:00:07]} 35. Qf3 {[%clk 0:00:13]} g4  {[%clk 0:00:07]} 36. Qf4 {[%clk 0:00:09]} gxh3 {[%clk 0:00:09]} 37. Rxf5  {[%clk 0:00:11]} exf5 {[%clk 0:00:10]} 38. Qxf5 {[%clk 0:00:13]} Rcg8  {[%clk 0:00:07]} 39. Qd7 {[%clk 0:00:14]} Kf8 {[%clk 0:00:04]} 40. Nd6  {[%clk 0:00:11]} h2+ {[%clk 0:00:06]} 41. Kxh2 1-0

[Event "20 ans"]
[Date "2016.10.28"]
[Round "SF1"]
[White "Vachier-Lagrave, Maxime"]
[Black "Korobov, Anton"]
[Result "1-0"]
[WhiteElo "2795"]
[BlackElo "2714"]
[ECO "C11"]
[WhiteFed "FRA"]
[BlackFed "UKR"]
[FCGameId "1859073590"]
[TimeControl "900+3"]

1. e4 {[%clk 0:15:03]} e6 {[%clk 0:15:05]} 2. d4 {[%clk 0:15:05]} d5  {[%clk 0:15:06]} 3. Nc3 {[%clk 0:15:06]} Nf6 {[%clk 0:15:08]} 4. e5  {[%clk 0:15:07]} Nfd7 {[%clk 0:15:09]} 5. f4 {[%clk 0:15:09]} c5  {[%clk 0:15:11]} 6. Nf3 {[%clk 0:15:10]} Nc6 {[%clk 0:15:12]} 7. Be3  {[%clk 0:15:11]} Be7 {[%clk 0:15:14]} 8. Qd2 {[%clk 0:14:38]} a6  {[%clk 0:15:16]} 9. Be2 {[%clk 0:13:50]} b5 {[%clk 0:15:12]} 10. O-O  {[%clk 0:13:49]} b4 {[%clk 0:14:59]} 11. Nd1 {[%clk 0:13:50]} O-O  {[%clk 0:14:59]} 12. c3 {[%clk 0:13:16]} a5 {[%clk 0:14:59]} 13. Bf2  {[%clk 0:12:46]} a4 {[%clk 0:13:22]} 14. cxb4 {[%clk 0:11:42]} Nxb4  {[%clk 0:13:23]} 15. Ne3 {[%clk 0:11:44]} Qa5 {[%clk 0:12:33]} 16. Rfc1  {[%clk 0:10:27]} Nc6 {[%clk 0:11:50]} 17. Qxa5 {[%clk 0:09:36]} Rxa5  {[%clk 0:11:51]} 18. dxc5 {[%clk 0:09:01]} Nxc5 {[%clk 0:11:36]} 19. Nd1  {[%clk 0:07:28]} Bd7 {[%clk 0:11:07]} 20. Nd4 {[%clk 0:07:27]} Rc8  {[%clk 0:10:30]} 21. Nc3 {[%clk 0:06:20]} g5 {[%clk 0:09:21]} 22. g3  {[%clk 0:05:54]} Nb4 {[%clk 0:08:39]} 23. Ncb5 {[%clk 0:05:56]} gxf4  {[%clk 0:06:15]} 24. gxf4 {[%clk 0:05:57]} Rb8 {[%clk 0:05:23]} 25. Nd6  {[%clk 0:04:57]} a3 {[%clk 0:04:24]} 26. bxa3 {[%clk 0:04:48]} Nbd3  {[%clk 0:04:24]} 27. Bxd3 {[%clk 0:04:49]} Nxd3 {[%clk 0:04:25]} 28. Rc7  {[%clk 0:04:49]} Nxf2 {[%clk 0:04:07]} 29. Kxf2 {[%clk 0:03:47]} Rb2+  {[%clk 0:04:08]} 30. Kg1 {[%clk 0:03:49]} Bh4 {[%clk 0:03:41]} 31. Rf1  {[%clk 0:02:39]} Bd8 {[%clk 0:03:30]} 32. Rxd7 {[%clk 0:02:34]} Bb6  {[%clk 0:03:33]} 33. Kh1 {[%clk 0:02:17]} Bxd4 {[%clk 0:03:34]} 34. f5  {[%clk 0:01:51]} Rxa3 {[%clk 0:02:38]} 35. f6 {[%clk 0:01:38]} h5  {[%clk 0:02:14]} 36. Rd8+ {[%clk 0:01:20]} Kh7 {[%clk 0:02:16]} 37. Nxf7  {[%clk 0:01:22]} Raxa2 {[%clk 0:01:00]} 38. Ng5+ {[%clk 0:01:24]} Kh6  {[%clk 0:01:02]} 39. Nf3 {[%clk 0:01:25]} Bc5 {[%clk 0:00:36]} 40. Rh8+  {[%clk 0:01:09]} Kg6 {[%clk 0:00:37]} 41. Rg8+ {[%clk 0:00:49]} Kf7  {[%clk 0:00:37]} 42. Rg7+ {[%clk 0:00:51]} Kf8 {[%clk 0:00:37]} 43. Rh7  {[%clk 0:00:53]} Rf2 {[%clk 0:00:20]} 44. Rg1 {[%clk 0:00:36]} Rxh2+  {[%clk 0:00:08]} 45. Nxh2 {[%clk 0:00:37]} Bxg1 {[%clk 0:00:10]} 46. Kxg1  {[%clk 0:00:39]} 1-0